fUST/lending_fUST_20260201
["ID","MTS","AMOUNT","RATE_DAILY","PERIOD"]
[404152689,1769883041164,-637.94,0.00037028,60]
[404152690,1769883041173,-420.86,0.00037113,60]
[404152691,1769883041183,-638.2629287,0.00037128,60]
[404152692,1769883041191,-420.86,0.00037213,60]
[404152693,1769883041201,-231.0202,0.000373,120]
[404152694,1769883041210,-158.7,0.000373,7]
[404152695,1769883041219,-420.86,0.00037313,60]
[404152696,1769883041228,-1000.0,0.00037367,30]
[404152697,1769883041236,-1000.0,0.00037367,30]
[404152698,1769883041245,-6478.9,0.000374,14]
[404152699,1769883041254,-420.86,0.00037413,60]
[404152700,1769883041263,-420.86,0.00037513,60]
[404152701,1769883041272,-420.86,0.00037613,60]
[404152702,1769883041281,-430.74385768,0.00037617,120]
[404152703,1769883041290,-420.86,0.00037713,60]
[404152704,1769883041299,-393.72,0.00037808,35]
[404152706,1769883041307,-420.86,0.00037813,60]
[404152707,1769883041316,-420.86,0.00037913,60]
[404152709,1769883041325,-1041.66666667,0.00038,30]
[404152711,1769883041334,-420.86,0.00038013,60]
[404152713,1769883041343,-2000.0,0.00038078,120]
[404152715,1769883041353,-160.0,0.000381,3]
[404152717,1769883041361,-420.86,0.00038113,60]
[404152719,1769883041370,-420.86,0.00038213,60]
[404152721,1769883041379,-420.86,0.00038313,60]
[404152723,1769883041388,-420.86,0.00038413,120]
[404152725,1769883041397,-420.86,0.00038513,120]
[404152727,1769883041405,-420.86,0.00038613,120]
[404152729,1769883041415,-393.72,0.0003863,36]
[404152731,1769883041424,-1218.0,0.00038678,5]
[404152733,1769883041433,-420.86,0.00038713,120]
[404152735,1769883041442,-420.86,0.00038813,120]
[404152737,1769883041451,-163.0,0.00038877,118]
[404152739,1769883041460,-420.86,0.00038913,120]
[404152741,1769883041469,-1041.66666667,0.00039,120]
[404152743,1769883041478,-420.86,0.00039013,120]
[404152745,1769883041487,-420.86,0.00039113,120]
[404152747,1769883041496,-1310.74530831,0.00039129,2]
[404152749,1769883041505,-420.86,0.00039213,120]
[404152751,1769883041514,-160.0,0.000393,3]
[404152753,1769883041523,-420.86,0.00039313,120]
[404152755,1769883041532,-420.86,0.00039413,120]
[404152757,1769883041541,-393.72,0.00039452,37]
[404152759,1769883041550,-200.82,0.00039452,2]
[404152760,1769883041559,-420.86,0.00039513,120]
[404152762,1769883041568,-420.86,0.00039613,120]
[404152764,1769883041578,-458.43453424,0.00039616,120]
[404152766,1769883041587,-420.86,0.00039713,120]
[404152768,1769883041596,-6478.9,0.000398,14]
[404152770,1769883041605,-420.86,0.00039813,120]
[404152772,1769883041615,-420.86,0.00039913,120]
[404152774,1769883041624,-420.86,0.00040013,120]
[404152776,1769883041633,-503.84171,0.00040124,60]
[404152778,1769883041642,-699.85,0.000402,30]
[404152780,1769883041651,-420.86,0.00040213,120]
[404152783,1769883041661,-393.72,0.00040273,38]
[404152784,1769883041671,-420.86,0.00040313,120]
[404152787,1769883041681,-1867.95617684,0.00040339,2]
[404152788,1769883041690,-420.86,0.00040513,120]
[404152790,1769883041699,-420.86,0.00040713,120]
[404152792,1769883041708,-420.86,0.00040813,120]
[404152795,1769883041718,-2000.0,0.00040818,120]
[404152796,1769883041727,-150.0,0.00040877,30]
[404152799,1769883041736,-420.86,0.00040913,120]
[404152801,1769883041745,-544.7,0.00040993,120]
[404152803,1769883041755,-420.86,0.00041013,120]
[404152805,1769883041765,-393.72,0.00041095,39]
[404152806,1769883041774,-948.28,0.00041096,120]
[404152808,1769883041783,-367.20317245,0.00041096,31]
[404152811,1769883041793,-161.75457638,0.000411,120]
[404152813,1769883041807,-161.75457638,0.000411,120]
[404152815,1769883041816,-161.75457638,0.000411,120]
[404152816,1769883041825,-161.75457638,0.000411,120]
[404152819,1769883041835,-161.75457638,0.000411,120]
[404152821,1769883041845,-161.75457638,0.000411,120]
[404152823,1769883041854,-161.75457638,0.000411,120]
[404152825,1769883041863,-161.75457638,0.000411,120]
[404152827,1769883041872,-161.75,0.000411,120]
[404152828,1769883041881,-234.43920214,0.000411,120]
[404152831,1769883041893,-234.43920214,0.000411,120]
[404152832,1769883041904,-234.43920214,0.000411,120]
[404152834,1769883041913,-234.43920214,0.000411,120]
[404152837,1769883041923,-234.43920214,0.000411,120]
[404152838,1769883041933,-234.43920214,0.000411,120]
[404152840,1769883041943,-234.43920214,0.000411,120]
[404152843,1769883041952,-234.43920214,0.000411,120]
[404152845,1769883041962,-234.43920214,0.000411,120]
[404152847,1769883041972,-234.43920214,0.000411,120]
[404152849,1769883041981,-234.43920214,0.000411,120]
[404152851,1769883041990,-234.43920214,0.000411,120]
[404152853,1769883041999,-234.43920214,0.000411,120]
[404152855,1769883042008,-234.43920214,0.000411,120]
[404152866,1769883042105,-234.43920214,0.000411,120]
[404152868,1769883042115,-234.43920214,0.000411,120]
[404152870,1769883042124,-234.43920214,0.000411,120]
[404152872,1769883042134,-234.43920214,0.000411,120]
[404152874,1769883042143,-234.43920214,0.000411,120]
[404152876,1769883042151,-234.43,0.000411,120]
[404152877,1769883042161,-246.48334857,0.000411,120]
[404152879,1769883042171,-246.48334857,0.000411,120]
[404152880,1769883042180,-246.48334857,0.000411,120]
[404152881,1769883042189,-246.48334857,0.000411,120]
[404152882,1769883042199,-246.48334857,0.000411,120]
[404152883,1769883042208,-246.48334857,0.000411,120]
[404152884,1769883042217,-246.48334857,0.000411,120]
[404152885,1769883042227,-246.48334857,0.000411,120]
[404152886,1769883042236,-246.48334857,0.000411,120]
[404152887,1769883042245,-246.48334857,0.000411,120]
[404152888,1769883042255,-246.48334857,0.000411,120]
[404152889,1769883042264,-246.48334857,0.000411,120]
[404152890,1769883042272,-246.48334857,0.000411,120]
[404152891,1769883042281,-246.48334857,0.000411,120]
[404152892,1769883042290,-246.48334857,0.000411,120]
[404152893,1769883042299,-246.48334857,0.000411,120]
[404152894,1769883042308,-246.48334857,0.000411,120]
[404152895,1769883042317,-246.48334857,0.000411,120]
[404152896,1769883042326,-246.48334857,0.000411,120]
[404152897,1769883042335,-246.48,0.000411,120]
[404152898,1769883042344,-1000.0,0.00041103,60]
[404152899,1769883042354,-1000.0,0.00041103,60]
[404152900,1769883042363,-579.0,0.00041103,60]
[404152901,1769883042372,-420.86,0.00041113,120]
[404152902,1769883042384,-420.86,0.00041213,120]
[404152903,1769883042397,-420.86,0.00041413,120]
[404152904,1769883042412,-420.86,0.00041513,120]
[404152905,1769883042422,-420.86,0.00041613,120]
[404152906,1769883042433,-486.12521081,0.00041617,120]
[404152907,1769883042442,-420.86,0.00041713,120]
[404152908,1769883042451,-420.86,0.00041813,120]
[404152909,1769883042460,-420.86,0.00041913,120]
[404152910,1769883042470,-393.72,0.00041917,40]
[404152911,1769883042480,-420.86,0.00042013,120]
[404152912,1769883042490,-420.86,0.00042113,120]
[404152913,1769883042499,-420.86,0.00042213,120]
[404152914,1769883042508,-168.08,0.000423,14]
[404152915,1769883042517,-420.86,0.00042313,120]
[404152916,1769883042527,-6478.9,0.000424,14]
[404152917,1769883042540,-158.7,0.000424,14]
[404152918,1769883042550,-420.86,0.00042413,120]
[404152919,1769883042559,-420.86,0.00042513,120]
[404152920,1769883042569,-378.942317,0.00042545,30]
[404152921,1769883042579,-378.942317,0.00042545,30]
[404152922,1769883042592,-373.0599467,0.00042545,30]
[404152923,1769883042601,-420.86,0.00042613,120]
[404152924,1769883042611,-420.86,0.00042713,120]
[404152925,1769883042620,-393.72,0.00042739,41]
[404152926,1769883042629,-420.86,0.00042813,120]
[404152927,1769883042638,-420.86,0.00043013,120]
[404152928,1769883042647,-420.86,0.00043113,120]
[404152929,1769883042657,-420.86,0.00043213,120]
[404152930,1769883042667,-232.71,0.0004329,120]
[404152931,1769883042677,-544.7,0.00043386,120]
[404152932,1769883042687,-421.16196406,0.00043413,120]
[404152933,1769883042696,-503.84171,0.00043549,60]
[404152934,1769883042707,-2000.0,0.00043558,120]
[404152935,1769883042716,-393.72,0.00043561,42]
[404152936,1769883042726,-513.81588737,0.00043617,120]
[404152937,1769883042735,-393.72,0.00044383,43]
[404152938,1769883042745,-169.9437508,0.00045,120]
[404152939,1769883042754,-152.56,0.000452,14]
[404152940,1769883042764,-393.72,0.00045205,44]
[404152941,1769883042773,-1000.0,0.00045214,60]
[404152942,1769883042783,-1000.0,0.00045214,60]
[404152943,1769883042792,-1000.0,0.00045214,60]
[404152944,1769883042802,-188103.2789,0.0004544,30]
[404152945,1769883042813,-541.50656394,0.00045617,120]
[404152946,1769883042822,-544.7,0.00045779,120]
[404152947,1769883042832,-393.72,0.00046027,45]
[404152948,1769883042841,-2000.0,0.00046298,120]
[404152949,1769883042850,-359.02,0.00046549,13]
[404152950,1769883042859,-500.0,0.00046575,120]
[404152951,1769883042869,-251.93958832,0.00046575,120]
[404152952,1769883042879,-2048.03954424,0.00046636,2]
[404152953,1769883042890,-393.72,0.00046849,46]
[404152954,1769883042903,-503.84171,0.00046973,60]
[404152955,1769883042912,-621.47,0.00047356,13]
[404152956,1769883042923,-569.1972405,0.00047617,120]
[404152957,1769883042934,-393.72,0.00047671,47]
[404152958,1769883042943,-2918.68152631,0.00048078,2]
[404152959,1769883042953,-544.7,0.00048172,120]
[404152960,1769883042962,-3081.77,0.00048193,13]
[404152961,1769883042973,-393.72,0.00048493,48]
[404152962,1769883042983,-150.0,0.00048718,30]
[404152964,1769883042993,-344.0,0.00049,90]
[404152965,1769883043003,-8065.76,0.00049015,13]
[404152966,1769883043013,-2000.0,0.00049037,120]
[404152967,1769883043022,-262.79336981,0.00049315,120]
[404152968,1769883043032,-393.72,0.00049315,49]
[404152969,1769883043041,-299.0,0.00049315,120]
[404152970,1769883043052,-299.0,0.00049315,120]
[404152971,1769883043061,-299.0,0.00049315,120]
[404152972,1769883043071,-299.0,0.00049315,120]
[404152973,1769883043080,-299.0,0.00049315,120]
[404152974,1769883043090,-299.0,0.00049315,120]
[404152975,1769883043099,-299.0,0.00049315,120]
[404152976,1769883043109,-299.0,0.00049315,120]
[404152977,1769883043118,-299.0,0.00049315,120]
[404152978,1769883043127,-299.0,0.00049315,120]
[404152979,1769883043136,-299.0,0.00049315,120]
[404152980,1769883043145,-299.0,0.00049315,120]
[404152981,1769883043154,-299.0,0.00049315,120]
[404152982,1769883043163,-299.0,0.00049315,120]
[404152983,1769883043172,-299.0,0.00049315,120]
[404152984,1769883043182,-299.0,0.00049315,120]
[404152985,1769883043196,-299.0,0.00049315,120]
[404152986,1769883043205,-299.0,0.00049315,120]
[404152987,1769883043215,-299.0,0.00049315,120]
[404152988,1769883043224,-299.0,0.00049315,120]
[404152989,1769883043234,-299.0,0.00049315,120]
[404152990,1769883043243,-299.0,0.00049315,120]
[404152991,1769883043253,-299.0,0.00049315,120]
[404152992,1769883043263,-299.0,0.00049315,120]
[404152993,1769883043272,-299.0,0.00049315,120]
[404152994,1769883043282,-299.0,0.00049315,120]
[404152995,1769883043291,-299.0,0.00049315,120]
[404152996,1769883043300,-299.0,0.00049315,120]
[404152997,1769883043309,-299.0,0.00049315,120]
[404152998,1769883043319,-299.0,0.00049315,120]
[404152999,1769883043328,-299.0,0.00049315,120]
[404153000,1769883043337,-299.0,0.00049315,120]
[404153001,1769883043347,-299.0,0.00049315,120]
[404153002,1769883043357,-299.0,0.00049315,120]
[404153003,1769883043368,-299.0,0.00049315,120]
[404153004,1769883043380,-299.0,0.00049315,120]
[404153005,1769883043393,-299.0,0.00049315,120]
[404153006,1769883043402,-299.0,0.00049315,120]
[404153007,1769883043412,-299.0,0.00049315,120]
[404153008,1769883043422,-299.0,0.00049315,120]
[404153009,1769883043432,-299.0,0.00049315,120]
[404153010,1769883043447,-299.0,0.00049315,120]
[404153011,1769883043457,-299.0,0.00049315,120]
[404153012,1769883043466,-299.0,0.00049315,120]
[404153013,1769883043476,-299.0,0.00049315,120]
[404153014,1769883043489,-344.0,0.00049589,120]
[404153015,1769883043499,-596.88791707,0.00049617,120]
[404153016,1769883043508,-20447.84,0.000497,13]
[404153017,1769883043518,-1000.0,0.00049735,120]
[404153018,1769883043528,-1000.0,0.00049735,120]
[404153019,1769883043537,-1000.0,0.00049735,120]
[404153020,1769883043546,-715.0,0.00049735,120]
[404153021,1769883043556,-1397.0,0.00049863,120]
[404153022,1769883043565,-221.0,0.0005,120]
[404153023,1769883043577,-1041.66666667,0.0005,120]
[404153024,1769883043586,-1041.66666667,0.0005,30]
[404153025,1769883043595,-164.0,0.0005,120]
[404153026,1769883043605,-393.72,0.00050136,50]
[404153027,1769883043614,-1000.0,0.000503,60]
[404153028,1769883043624,-1000.0,0.000503,60]
[404153029,1769883043633,-1000.0,0.000503,60]
[404153030,1769883043643,-503.84171,0.00050398,60]
[404153031,1769883043652,-221.0,0.000504,120]
[404153032,1769883043661,-50613.02264105,0.000505,60]
[404153033,1769883043671,-544.7,0.00050566,120]
[404153034,1769883043680,-1000.0,0.000506,60]
[404153035,1769883043693,-1000.0,0.000506,60]
[404153036,1769883043703,-221.0,0.000508,120]
[404153037,1769883043712,-1000.0,0.000509,60]
[404153039,1769883043721,-1000.0,0.000509,60]
[404153040,1769883043730,-393.72,0.00050958,51]
[404153041,1769883043740,-3000.0,0.00051,85]
[404153042,1769883043749,-3000.0,0.0005101,85]
[404153043,1769883043758,-3000.0,0.0005102,85]
[404153044,1769883043767,-3000.0,0.0005103,85]
[404153045,1769883043776,-3000.0,0.0005104,85]
[404153046,1769883043786,-3000.0,0.0005105,85]
[404153047,1769883043795,-3000.0,0.0005106,85]
[404153048,1769883043804,-5725.202912,0.0005107,85]
[404153049,1769883043813,-1000.0,0.000512,60]
[404153051,1769883043822,-1000.0,0.000512,60]
[404153052,1769883043832,-221.0,0.000512,120]
[404153053,1769883043841,-699.85,0.000515,30]
[404153054,1769883043852,-1000.0,0.000515,60]
[404153055,1769883043862,-1000.0,0.000515,60]
[404153056,1769883043871,-221.0,0.000516,120]
[404153058,1769883043881,-624.57859363,0.00051617,120]
[404153059,1769883043890,-2000.0,0.00051777,120]
[404153060,1769883043903,-393.72,0.0005178,52]
[404153061,1769883043913,-344.0,0.00051781,120]
[404153062,1769883043922,-1000.0,0.000518,60]
[404153065,1769883043931,-200.0,0.00051999,60]
[404153066,1769883043943,-166.83,0.00052,2]
[404153068,1769883043953,-221.0,0.00052,120]
[404153069,1769883043963,-200.0,0.00052054,60]
[404153070,1769883043973,-1000.0,0.000521,60]
[404153071,1769883043982,-1000.0,0.000524,60]
[404153072,1769883043991,-221.0,0.000524,120]
[404153073,1769883044000,-393.80679901,0.00052602,53]
[404153074,1769883044009,-1000.0,0.000527,60]
[404153076,1769883044019,-221.0,0.000528,120]
[404153077,1769883044028,-544.7,0.00052959,120]
[404153078,1769883044037,-1000.0,0.00053,60]
[404153079,1769883044046,-6478.9,0.00053,14]
[404153080,1769883044056,-221.0,0.000532,120]
[404153081,1769883044064,-1000.0,0.000533,60]
[404153082,1769883044073,-1000.0,0.000536,60]
[404153083,1769883044083,-221.0,0.000536,120]
[404153084,1769883044092,-652.2692702,0.00053617,120]
[404153085,1769883044101,-503.84171,0.00053823,60]
[404153086,1769883044111,-221.0,0.00054,120]
[404153087,1769883044120,-937.0,0.00054,120]
[404153088,1769883044129,-2946.22776676,0.00054144,2]
[404153089,1769883044139,-344.0,0.0005437,120]
[404153090,1769883044149,-221.0,0.000544,120]
[404153091,1769883044158,-284.49178705,0.00054517,120]
[404153092,1769883044167,-1000.0,0.00054708,120]
[404153093,1769883044177,-1000.0,0.00054708,120]
[404153094,1769883044186,-1000.0,0.00054708,120]
[404153095,1769883044195,-200.0,0.00054794,120]
[404153096,1769883044204,-200.0,0.00054794,120]
[404153097,1769883044214,-200.0,0.00054794,120]
[404153098,1769883044223,-200.0,0.00054794,120]
[404153099,1769883044232,-297.74307288,0.00054794,120]
[404153100,1769883044242,-221.0,0.000548,120]
[404153101,1769883044251,-212.0,0.0005509,120]
[404153102,1769883044261,-221.0,0.000552,120]
[404153103,1769883044270,-1330.24625973,0.00055351,30]
[404153104,1769883044279,-221.0,0.000556,120]
[404153105,1769883044288,-4198.69849649,0.00055819,2]
[404153106,1769883044298,-221.0,0.00056,120]
[404153107,1769883044307,-150.0,0.00056165,30]
[404153108,1769883044317,-214.0,0.000564,120]
[404153109,1769883044326,-212.0,0.000564,120]
[404153110,1769883044335,-221.0,0.000564,120]
[404153111,1769883044346,-153.589,0.00056712,110]
[404153112,1769883044362,-221.0,0.000569,120]
[404153113,1769883044371,-221.0,0.000573,120]
[404153114,1769883044380,-214.0,0.000577,120]
[404153115,1769883044389,-212.0,0.000577,120]
[404153116,1769883044399,-221.0,0.000577,120]
[404153117,1769883044409,-344.0,0.00057995,120]
[404153118,1769883044418,-221.0,0.000581,120]
[404153119,1769883044427,-221.0,0.000585,120]
[404153120,1769883044437,-221.0,0.000589,120]
[404153121,1769883044446,-214.0,0.00059,120]
[404153122,1769883044455,-152.56,0.00059,14]
[404153123,1769883044465,-212.0,0.00059,120]
[404153124,1769883044474,-221.0,0.000593,120]
[404153125,1769883044484,-221.0,0.000597,120]
[404153126,1769883044493,-423.84,0.00059867,30]
[404153127,1769883044502,-221.0,0.000601,120]
[404153128,1769883044512,-699.85,0.000605,30]
[404153129,1769883044521,-221.0,0.000605,120]
[404153130,1769883044531,-221.0,0.000609,120]
[404153131,1769883044540,-221.0,0.000613,120]
[404153132,1769883044550,-344.0,0.00061619,120]
[404153133,1769883044559,-221.0,0.000617,120]
[404153134,1769883044568,-221.0,0.000621,120]
[404153135,1769883044578,-344.0,0.00062137,120]
[404153136,1769883044587,-221.0,0.000625,120]
[404153137,1769883044677,-221.0,0.000629,120]
[404153138,1769883044688,-221.0,0.000633,120]
[404153139,1769883044697,-168.51,0.000635,14]
[404153140,1769883044707,-221.0,0.000637,120]
[404153141,1769883044717,-150.0,0.00063809,30]
[404153142,1769883044726,-223.36,0.00064,2]
[404153143,1769883044735,-221.0,0.000641,120]
[404153144,1769883044744,-221.0,0.000645,120]
[404153145,1769883044753,-221.0,0.000649,120]
[404153146,1769883044762,-902.32,0.00065,60]
[404153147,1769883044771,-344.0,0.00065244,120]
[404153148,1769883044781,-221.0,0.000653,120]
[404153149,1769883044791,-221.0,0.000657,120]
[404153150,1769883044800,-4023.14,0.000658,70]
[404153151,1769883044810,-221.0,0.000661,120]
[404153152,1769883044819,-221.0,0.000665,120]
[404153153,1769883044828,-221.0,0.000669,120]
[404153154,1769883044838,-221.0,0.000673,120]
[404153156,1769883044848,-221.0,0.000677,120]
[404153157,1769883044857,-221.0,0.000681,120]
[404153158,1769883044867,-221.0,0.000685,120]
[404153159,1769883044876,-221.0,0.000689,120]
[404153161,1769883044885,-3000.0,0.00069,120]
[404153163,1769883044895,-3000.0,0.0006901,120]
[404153165,1769883044909,-3000.0,0.0006902,120]
[404153166,1769883044918,-3000.0,0.0006903,120]
[404153167,1769883044927,-4035.121747,0.0006904,120]
[404153168,1769883044939,-221.0,0.000693,120]
[404153169,1769883044948,-221.0,0.000697,120]
[404153170,1769883044958,-10000.0,0.0007,120]
[404153171,1769883044967,-1000.0,0.0007,120]
[404153172,1769883044977,-3000.0,0.0007,120]
[404153173,1769883044987,-221.0,0.000701,120]
[404153174,1769883044996,-221.0,0.000706,120]
[404153175,1769883045005,-221.0,0.00071,120]
[404153176,1769883045014,-221.0,0.000714,120]
[404153178,1769883045024,-150.0,0.00071452,30]
[404153179,1769883045033,-699.85,0.000717,30]
[404153180,1769883045042,-221.0,0.000718,120]
[404153181,1769883045051,-221.0,0.000722,120]
[404153182,1769883045061,-221.0,0.000726,120]
[404153183,1769883045070,-221.0,0.00073,120]
[404153184,1769883045079,-221.0,0.000734,120]
[404153185,1769883045088,-221.0,0.000738,120]
[404153186,1769883045098,-221.0,0.000742,120]
[404153187,1769883045107,-221.0,0.000746,120]
[404153188,1769883045116,-221.0,0.00075,120]
[404153189,1769883045125,-221.0,0.000754,120]
[404153190,1769883045134,-221.0,0.000758,120]
[404153191,1769883045144,-221.0,0.000762,120]
[404153192,1769883045153,-221.0,0.000766,120]
[404153193,1769883045162,-262.0,0.00077,120]
[404153194,1769883045171,-164.0,0.00077,120]
[404153195,1769883045180,-200.0,0.000773,120]
[404153196,1769883045191,-150.0,0.00079096,30]
[404153197,1769883045201,-1781.680194,0.0008,120]
[404153198,1769883045211,-215.0,0.0008,120]
[404153199,1769883045220,-1000.0,0.0008,120]
[404153200,1769883045229,-153.589,0.00083356,120]
[404153201,1769883045238,-500.0,0.00085,60]
[404153202,1769883045248,-162.8,0.0008674,30]
[404153203,1769883045257,-4091.0,0.0009,116]
[404153204,1769883045266,-630.0,0.0009207,120]
[404153205,1769883045275,-2151.0,0.0009207,120]
[404153206,1769883045284,-186.06,0.00094384,30]
[404153207,1769883045294,-630.0,0.0009507,120]
[404153208,1769883045303,-2151.0,0.0009507,120]
[404153209,1769883045312,-200.0,0.00095479,120]
[404153210,1769883045321,-630.0,0.0009807,120]
[404153211,1769883045330,-2151.0,0.0009807,120]
[404153212,1769883045339,-423.82,0.00099433,120]
[404153213,1769883045349,-313.62506379,0.001,7]
[404153214,1769883045358,-500.0,0.001,7]
[404153215,1769883045367,-500.0,0.001,7]
[404153216,1769883045376,-561.73142164,0.001,7]
[404153217,1769883045385,-6478.9,0.001,30]
[404153218,1769883045394,-4053.881645,0.001,94]
[404153219,1769883045403,-223.36,0.001,2]
[404153220,1769883045413,-630.0,0.0010107,120]
[404153221,1769883045423,-2151.0,0.0010107,120]
[404153222,1769883045432,-209.32,0.00102027,30]
[404153223,1769883045442,-630.0,0.0010407,120]
[404153224,1769883045451,-2151.0,0.0010407,120]
[404153225,1769883045460,-630.0,0.0010707,120]
[404153226,1769883045469,-2151.0,0.0010707,120]
[404153227,1769883045478,-232.58,0.00109671,30]
[404153228,1769883045488,-255.86789278,0.0011,120]
[404153229,1769883045497,-153.589,0.0011,120]
[404153230,1769883045506,-630.0,0.0011007,120]
[404153231,1769883045516,-2144.0,0.0011007,120]
[404153232,1769883045525,-255.86789278,0.00112589,120]
[404153233,1769883045534,-152.56,0.00115,30]
[404153234,1769883045543,-255.86789278,0.00115178,120]
[404153235,1769883045552,-3873.81,0.0012,103]
[404153236,1769883045563,-3949.0,0.001202,62]
[404153237,1769883045572,-699.85,0.00124,60]
[404153238,1769883045582,-255.86789278,0.001333,120]
[404153239,1769883045591,-255.86789278,0.00138478,120]
[404153240,1769883045601,-255.86789278,0.00154011,120]
[404153241,1769883045610,-255.86789278,0.00161778,120]
[404153242,1769883045620,-200.0,0.00162228,120]
[404153243,1769883045629,-255.86789278,0.00169544,120]
[404153244,1769883045638,-255.86789278,0.00185078,120]
[404153245,1769883045648,-7702.79,0.001947,103]
[404153246,1769883045658,-255.86789278,0.00198022,120]
[404153247,1769883045667,-50000.0,0.002,120]
[404153248,1769883045677,-1500.0,0.002,120]
[404153249,1769883045686,-255.86789278,0.00200611,120]
[404153250,1769883045698,-255.86789278,0.00205789,120]
[404153251,1769883045708,-255.86789278,0.00210967,120]
[404153252,1769883045717,-336.0,0.0023082,120]
[404153253,1769883045726,-200.0,0.00236891,120]
[404153254,1769883045735,-255.86789278,0.00242033,120]
[404153255,1769883045744,-255.86789278,0.00244622,120]
[404153256,1769883045753,-255.86789278,0.00257567,120]
[404153257,1769883045762,-255.86789278,0.00260156,120]
[404153258,1769883045771,-255.86789278,0.00262744,120]
[404153259,1769883045780,-255.86789278,0.00270511,120]
[404153260,1769883045789,-151.0,0.00273973,120]
[404153261,1769883045798,-151.0,0.00273973,120]
[404153262,1769883045808,-151.0,0.00273973,60]
[404153263,1769883045817,-182.864764,0.00273973,60]
[404153264,1769883045826,-151.0,0.00273973,120]
[404153265,1769883045835,-151.0,0.00273973,120]
[404153266,1769883045844,-151.0,0.00273973,120]
[404153267,1769883045854,-151.0,0.00273973,120]
[404153268,1769883045862,-151.0,0.00273973,120]
[404153269,1769883045872,-151.0,0.00273973,120]
[404153270,1769883045881,-151.0,0.00273973,120]
[404153271,1769883045891,-151.0,0.00273973,120]
[404153272,1769883045904,-151.0,0.00273973,120]
[404153273,1769883045913,-151.0,0.00273973,120]
[404153274,1769883045922,-151.0,0.00273973,120]
[404153275,1769883045932,-151.0,0.00273973,120]
[404153276,1769883045943,-184.711374,0.00273973,120]
[404153277,1769883045953,-151.0,0.00273973,120]
[404153278,1769883045962,-151.0,0.00273973,120]
[404153279,1769883045972,-151.0,0.00273973,120]
[404153280,1769883045981,-178.305353,0.00273973,120]
[404153281,1769883045990,-151.0,0.00273973,120]
[404153282,1769883046000,-151.0,0.00273973,120]
[404153284,1769883046009,-151.0,0.00273973,120]
[404153285,1769883046022,-151.0,0.00273973,120]
[404153286,1769883046031,-151.0,0.00273973,120]
[404153287,1769883046040,-151.0,0.00273973,120]
[404153288,1769883046049,-151.0,0.00273973,120]
[404153289,1769883046058,-151.0,0.00273973,120]
[404153291,1769883046067,-151.0,0.00273973,120]
[404153292,1769883046076,-151.0,0.00273973,120]
[404153293,1769883046086,-151.0,0.00273973,120]
[404153294,1769883046095,-189.489535,0.00273973,120]